[Event "DFMMLV 2019"]
[Site "Braunfels"]
[Date "2019.06.20"]
[Round "1.2"]
[White "Meier, Annemarie"]
[Black "Mucha, Annegret"]
[Result "1/2-1/2"]
[ECO "E16"]
[WhiteElo "2267"]
[BlackElo "2050"]
[Annotator "NA"]
[PlyCount "49"]
[EventDate "2019.06.20"]
[EventType "team-tourn"]
[EventCountry "GER"]
[SourceTitle "playchess.com"]
[Source "ChessBase"]
[SourceQuality "1"]
[WhiteTeam "Wuerttemberg 1"]
[BlackTeam "Thueringen"]
[TimeControl "40/5400+30:1800+30"]

1. Nf3 {[%emt 0:00:00]} Nf6 {[%emt 0:05:34]} 2. c4 {[%emt 0:00:11]} b6 {[%emt 0:01:26]} 3. g3 {[%emt 0:00:34]} Bb7 {[%emt 0:00:10]} 4. d4 {[%emt 0:00:35]} e6 {[%emt 0:00:55]} 5. Bg2 {[%emt 0:00:11]} Bb4+ {[%emt 0:02:43]} 6. Bd2 {[%emt 0:00:17]} Be7 {[%emt 0:00:07]} 7. Nc3 {[%emt 0:00:49]} O-O {[%emt 0:01:33]} 8. Qc2 {[%emt 0:01:12]} d5 {[%emt 0:10:40]} 9. cxd5 {[%emt 0:04:27]} Nxd5 {[%emt 0:05:18]} 10. O-O {[%emt 0:02:31]} Nd7 {[%emt 0:02:36]} 11. Nxd5 {[%emt 0:06:27]} exd5 {[%emt 0:07:36]} 12. Rfd1 {[%emt 0:02:49]} c5 $14 {[%emt 0:02:06]} 13. Bc3 {[%emt 0:07:15]} c4 {[%emt 0:02:07]} 14. Ne5 {[%emt 0:00:39]} b5 {[%emt 0:06:40]} 15. a3 {[%emt 0:06:58]} Qc7 {[%emt 0:04:46]} 16. Qd2 {[%emt 0:06:32]} Bd6 {[%emt 0:08:26]} 17. Ba5 {[%emt 0:00:56]} Nb6 {[%emt 0:00:11]} 18. f4 {[%emt 0:00:54]} f6 {[%emt 0:05:09]} 19. Ng4 {[%emt 0:00:25]} Rfe8 {[%emt 0:09:00]} 20. Bf3 {[%emt 0:06:42]} Qf7 {[%emt 0:02:58]} 21. Re1 {[%emt 0:04:41]} Nd7 {[%emt 0:05:12]} 22. Ne3 {[%emt 0:06:23]} f5 {[%emt 0:03:51]} 23. Nd1 {[%emt 0:01:17]} Nf6 {[%emt 0:00:54]} 24. Nc3 a6 25. Nd1 1/2-1/2

[Event "DFMMLV 2019"]
[Site "Braunfels"]
[Date "2019.06.20"]
[Round "1.3"]
[White "Skibbe, Diana"]
[Black "Mira, Helene"]
[Result "0-1"]
[ECO "B07"]
[WhiteElo "1986"]
[BlackElo "2029"]
[Annotator "NA"]
[PlyCount "114"]
[EventDate "2019.06.20"]
[EventType "team-tourn"]
[EventCountry "GER"]
[SourceTitle "playchess.com"]
[Source "ChessBase"]
[SourceQuality "1"]
[WhiteTeam "Thueringen"]
[BlackTeam "Wuerttemberg 1"]
[TimeControl "40/5400+30:1800+30"]

1. e4 {[%emt 0:00:00]} d6 {[%emt 0:00:00]} 2. d4 {[%emt 0:00:00]} Nf6 {[%emt 0:00:00]} 3. Nc3 {[%emt 0:00:00]} c6 {[%emt 0:00:00]} 4. Bd3 {[%emt 0:01:02]} e5 {[%emt 0:00:04]} 5. Nf3 {[%emt 0:00:22]} Nbd7 {[%emt 0:00:32]} 6. Ne2 {[%emt 0:00:26]} g6 {[%emt 0:00:35]} 7. c3 {[%emt 0:00:16]} Bg7 {[%emt 0:00:12]} 8. Ng3 {[%emt 0:02:18]} O-O {[%emt 0:00:33]} 9. h4 {[%emt 0:00:09]} h5 {[%emt 0:00:01]} 10. Bg5 {[%emt 0:00:04]} Qb6 {[%emt 0:00:07]} 11. Qc2 {[%emt 0:02:06]} exd4 {[%emt 0:00:37]} 12. cxd4 {[%emt 0:01:32]} Ng4 {[%emt 0:00:35]} 13. Be3 {[%emt 0:05:14]} Nxe3 {[%emt 0:00:31]} 14. fxe3 {[%emt 0:00:03]} Qa5+ {[%emt 0:04:14]} 15. Nd2 {[%emt 0:00:49]} Nf6 {[%emt 0:01:10]} 16. O-O {[%emt 0:00:28]} Ng4 {[%emt 0:00:06]} 17. Rae1 {[%emt 0:05:08]} Qd8 {[%emt 0:00:21]} 18. Nf3 {[%emt 0:00:11]} Bh6 {[%emt 0:01:19]} 19. Qc1 {[%emt 0:07:25]} Qe7 {[%emt 0:04:30]} 20. Re2 {[%emt 0:01:24]} Bd7 {[%emt 0:00:12]} 21. Rfe1 {[%emt 0:00:49]} Rae8 {[%emt 0:00:12]} 22. Nf1 {[%emt 0:01:00]} f5 {[%emt 0:00:17]} 23. Qc4+ {[%emt 0:03:20]} Kg7 {[%emt 0:00:51]} 24. exf5 {[%emt 0:00:21]} d5 {[%emt 0:01:16]} 25. Qc5 {[%emt 0:01:31]} Bxf5 {[%emt 0:01:04]} 26. e4 {[%emt 0:02:32]} Qxc5 {[%emt 0:04:50]} 27. dxc5 {[%emt 0:00:06]} dxe4 {[%emt 0:01:03]} 28. Bxe4 {[%emt 0:00:47]} Bxe4 {[%emt 0:01:04]} 29. Rxe4 {[%emt 0:03:26]} Rxe4 {[%emt 0:00:08]} 30. Rxe4 {[%emt 0:00:08]} Kf6 {[%emt 0:00:01]} 31. g3 {[%emt 0:03:27]} Rd8 {[%emt 0:00:13]} 32. Kg2 {[%emt 0:00:34]} Rd5 {[%emt 0:02:35]} 33. b4 {[%emt 0:00:25]} Rd1 {[%emt 0:01:30]} 34. N1h2 {[%emt 0:09:28]} Ne3+ {[%emt 0:01:58]} 35. Kh3 {[%emt 0:01:10]} Rd3 {[%emt 0:03:09]} 36. Ne5 {[%emt 0:02:11]} Kf5 {[%emt 0:03:34]} 37. Nxd3 {[%emt 0:01:13]} Kxe4 {[%emt 0:00:03]} 38. Nf2+ {[%emt 0:00:16]} Kd4 {[%emt 0:00:09]} 39. Nf3+ {[%emt 0:02:41]} Kc4 {[%emt 0:00:26]} 40. Ne5+ {[%emt 0:01:16]} Kxb4 {[%emt 0:00:14]} 41. Nxg6 {[%emt 0:30:06]} Kxc5 {[%emt 0:30:09]} 42. g4 {[%emt 0:00:12]} hxg4+ {[%emt 0:00:24]} 43. Nxg4 {[%emt 0:00:04]} Nxg4 {[%emt 0:00:11]} 44. Kxg4 {[%emt 0:00:10]} Kb4 {[%emt 0:01:38]} 45. Ne5 {[%emt 0:00:34]} Bg7 {[%emt 0:02:10]} 46. Kf5 {[%emt 0:00:31]} c5 {[%emt 0:01:35]} 47. Nd3+ {[%emt 0:01:19]} Kc4 {[%emt 0:00:08]} 48. Ke4 {[%emt 0:00:22]} b6 {[%emt 0:00:08]} 49. h5 {[%emt 0:01:09]} Kc3 {[%emt 0:02:23]} 50. Nf4 {[%emt 0:02:19]} Bh6 {[%emt 0:02:59]} 51. Nd3 {[%emt 0:05:14]} c4 {[%emt 0:01:05]} 52. Ne5 {[%emt 0:00:21]} b5 {[%emt 0:01:04]} 53. Kd5 {[%emt 0:02:21]} Bg7 {[%emt 0:02:03]} 54. Nc6 {[%emt 0:04:45]} b4 {[%emt 0:08:34]} 55. Nxa7 {[%emt 0:02:39]} b3 {[%emt 0:00:13]} 56. Nb5+ {[%emt 0:00:07]} Kb4 {[%emt 0:00:21]} 57. axb3 {[%emt 0:02:24]} cxb3 {[%emt 0:00:23]} 0-1

[Event "DFMMLV 2019"]
[Site "Braunfels"]
[Date "2019.06.20"]
[Round "1.4"]
[White "Gheng, Simona"]
[Black "Nguyen, Ha Thanh"]
[Result "1-0"]
[ECO "C05"]
[WhiteElo "1991"]
[BlackElo "1940"]
[Annotator "NA"]
[PlyCount "71"]
[EventDate "2019.06.20"]
[EventType "team-tourn"]
[EventCountry "GER"]
[SourceTitle "playchess.com"]
[Source "ChessBase"]
[SourceQuality "1"]
[WhiteTeam "Wuerttemberg 1"]
[TimeControl "40/5400+30:1800+30"]

1. e4 {[%emt 0:00:00]} e6 {[%emt 0:05:02]} 2. d4 {[%emt 0:00:00]} d5 {[%emt 0:00:05]} 3. Nd2 {[%emt 0:00:10]} Nf6 {[%emt 0:00:11]} 4. Bd3 {[%emt 0:00:19]} c5 {[%emt 0:02:41]} 5. exd5 {[%emt 0:00:09]} Nxd5 {[%emt 0:03:14]} 6. Ngf3 {[%emt 0:00:58]} Nc6 {[%emt 0:01:53]} 7. O-O {[%emt 0:02:14]} cxd4 {[%emt 0:04:26]} 8. Nb3 {[%emt 0:00:35]} Bd7 {[%emt 0:16:29]} 9. Nbxd4 {[%emt 0:03:44]} Nxd4 {[%emt 0:01:30]} 10. Nxd4 {[%emt 0:00:07]} Bd6 {[%emt 0:00:29]} 11. Qg4 {[%emt 0:05:35]} Nf6 {[%emt 0:13:06]} 12. Qf3 {[%emt 0:03:13]} Be5 {[%emt 0:17:25]} 13. Be3 {[%emt 0:10:37]} Qc7 {[%emt 0:04:47]} 14. h3 {[%emt 0:01:06]} a6 {[%emt 0:00:41]} 15. c3 {[%emt 0:02:08]} O-O {[%emt 0:02:32]} 16. Rfe1 {[%emt 0:01:27]} Rfe8 {[%emt 0:01:07]} 17. Rad1 {[%emt 0:09:28]} Ba4 {[%emt 0:07:46]} 18. b3 {[%emt 0:01:49]} Bd7 {[%emt 0:00:14]} 19. c4 {[%emt 0:00:55]} Qa5 {[%emt 0:03:57]} 20. Bb1 {[%emt 0:04:29]} Rad8 {[%emt 0:03:19]} 21. Bd2 {[%emt 0:03:19]} Qc7 {[%emt 0:02:33]} 22. Be3 {[%emt 0:05:22]} Qa5 {[%emt 0:01:54]} 23. Qe2 {[%emt 0:00:55]} Bxd4 {[%emt 0:01:52]} 24. Bxd4 {[%emt 0:01:20]} Qg5 {[%emt 0:01:19]} 25. Bxf6 {[%emt 0:03:35]} Qxf6 {[%emt 0:00:07]} 26. Qe4 {[%emt 0:00:15]} g6 {[%emt 0:01:19]} 27. Qxb7 {[%emt 0:00:56]} Bc8 {[%emt 0:00:07]} 28. Qc7 {[%emt 0:00:37]} Rd4 {[%emt 0:01:52]} 29. Bc2 {[%emt 0:07:27]} Red8 {[%emt 0:00:13]} 30. Rxd4 {[%emt 0:00:23]} Qxd4 {[%emt 0:00:09]} 31. Rd1 {[%emt 0:00:38]} Qxd1+ {[%emt 0:00:24]} 32. Bxd1 {[%emt 0:00:12]} Rxd1+ {[%emt 0:00:08]} 33. Kh2 {[%emt 0:00:02]} Bd7 {[%emt 0:00:04]} 34. c5 {[%emt 0:00:37]} Bb5 {[%emt 0:00:24]} 35. a4 {[%emt 0:00:11]} Be2 {[%emt 0:00:55]} 36. Qb8+ {[%emt 0:00:24]} 1-0

[Event "DFMMLV 2019"]
[Site "Braunfels"]
[Date "2019.06.20"]
[Round "1.5"]
[White "Jacke, Corinna"]
[Black "Zeller, Elisa"]
[Result "1/2-1/2"]
[ECO "C07"]
[WhiteElo "2001"]
[BlackElo "1953"]
[Annotator "NA"]
[PlyCount "61"]
[EventDate "2019.06.20"]
[EventType "team-tourn"]
[EventCountry "GER"]
[SourceTitle "playchess.com"]
[Source "ChessBase"]
[SourceQuality "1"]
[WhiteTeam "Thueringen"]
[BlackTeam "Wuerttemberg 1"]
[TimeControl "40/5400+30:1800+30"]

1. e4 {[%emt 0:00:00]} e6 {[%emt 0:00:00]} 2. d4 {[%emt 0:00:00]} d5 {[%emt 0:00:00]} 3. Nd2 {[%emt 0:00:00]} c5 {[%emt 0:00:00]} 4. exd5 {[%emt 0:00:00]} Qxd5 {[%emt 0:00:00]} 5. Ngf3 {[%emt 0:00:00]} cxd4 {[%emt 0:00:16]} 6. Bc4 {[%emt 0:01:33]} Qd7 {[%emt 0:00:44]} 7. Nb3 {[%emt 0:01:50]} Nc6 {[%emt 0:05:12]} 8. Nbxd4 {[%emt 0:03:32]} Nxd4 {[%emt 0:00:34]} 9. Nxd4 {[%emt 0:06:16]} a6 {[%emt 0:01:42]} 10. a4 {[%emt 0:01:09]} Nf6 {[%emt 0:01:22]} 11. O-O {[%emt 0:02:15]} Bc5 {[%emt 0:00:55]} 12. Nf3 {[%emt 0:02:09]} O-O {[%emt 0:03:48]} 13. Qe2 {[%emt 0:02:47]} Qc7 {[%emt 0:01:04]} 14. Bg5 {[%emt 0:10:42]} Be7 {[%emt 0:03:41]} 15. Rfe1 {[%emt 0:06:53]} b6 {[%emt 0:04:04]} 16. Rad1 {[%emt 0:07:30]} Kh8 {[%emt 0:02:37]} 17. Ne5 {[%emt 0:01:30]} Bb7 {[%emt 0:04:07]} 18. Bf4 {[%emt 0:07:42]} Qc5 {[%emt 0:05:26]} 19. Nxf7+ {[%emt 0:09:25]} Rxf7 {[%emt 0:01:18]} 20. Qxe6 {[%emt 0:00:01]} Rff8 {[%emt 0:00:42]} 21. Re5 {[%emt 0:03:31]} Qb4 {[%emt 0:12:41]} 22. c3 {[%emt 0:13:08]} Qxa4 {[%emt 0:00:40]} 23. b3 {[%emt 0:00:32]} Qc6 {[%emt 0:08:36]} 24. Qxc6 {[%emt 0:00:04]} Bxc6 {[%emt 0:00:03]} 25. Rxe7 {[%emt 0:00:10]} b5 {[%emt 0:01:24]} 26. Bf7 {[%emt 0:06:38]} Ne4 {[%emt 0:06:26]} 27. Be5 {[%emt 0:02:22]} Rad8 {[%emt 0:05:29]} 28. Rd4 {[%emt 0:02:40]} Rxd4 {[%emt 0:08:20]} 29. Bxd4 {[%emt 0:00:14]} Nf6 {[%emt 0:02:35]} 30. Rc7 {[%emt 0:01:59]} Be4 {[%emt 0:01:27]} 31. Re7 {[%emt 0:00:02]} 1/2-1/2

[Event "DFMMLV 2019"]
[Site "Braunfels"]
[Date "2019.06.20"]
[Round "1.6"]
[White "Heil, Marina"]
[Black "Schulz, Theresa Charlotte"]
[Result "0-1"]
[ECO "B20"]
[WhiteElo "1979"]
[BlackElo "1603"]
[Annotator "NA"]
[PlyCount "90"]
[EventDate "2019.06.20"]
[EventType "team-tourn"]
[EventCountry "GER"]
[SourceTitle "playchess.com"]
[Source "ChessBase"]
[SourceQuality "1"]
[WhiteTeam "Wuerttemberg 1"]
[BlackTeam "Thueringen"]
[TimeControl "40/5400+30:1800+30"]

1. e4 {[%emt 0:00:00]} c5 {[%emt 0:00:00]} 2. d3 {[%emt 0:00:00]} Nc6 {[%emt 0:00:00]} 3. f4 {[%emt 0:00:02]} e6 {[%emt 0:00:00]} 4. Nf3 {[%emt 0:00:22]} Nge7 {[%emt 0:00:35]} 5. Be2 {[%emt 0:00:35]} d5 {[%emt 0:00:20]} 6. O-O {[%emt 0:03:00]} g6 {[%emt 0:01:14]} 7. c3 {[%emt 0:00:49]} Bg7 {[%emt 0:00:12]} 8. Qe1 {[%emt 0:02:01]} b5 {[%emt 0:11:14]} 9. Be3 {[%emt 0:08:18]} d4 {[%emt 0:01:45]} 10. Bf2 {[%emt 0:01:03]} Bb7 {[%emt 0:04:11]} 11. a3 {[%emt 0:07:19]} a5 {[%emt 0:05:12]} 12. Qc1 {[%emt 0:05:00]} Rc8 {[%emt 0:04:52]} 13. Ra2 {[%emt 0:21:05]} O-O {[%emt 0:11:21]} 14. c4 {[%emt 0:09:42]} b4 {[%emt 0:05:13]} 15. Nbd2 {[%emt 0:00:48]} Qc7 {[%emt 0:01:06]} 16. Nb3 {[%emt 0:02:33]} Qb6 {[%emt 0:01:56]} 17. a4 {[%emt 0:02:47]} e5 {[%emt 0:10:07]} 18. Bh4 {[%emt 0:05:16]} Rce8 {[%emt 0:22:46]} 19. Bg3 {[%emt 0:04:34]} Bh6 {[%emt 0:01:17]} 20. Ng5 {[%emt 0:09:34]} exf4 {[%emt 0:05:06]} 21. Bxf4 {[%emt 0:00:45]} Bxg5 {[%emt 0:00:31]} 22. Bxg5 {[%emt 0:00:11]} f5 {[%emt 0:00:16]} 23. Bh6 {[%emt 0:04:11]} Rf7 {[%emt 0:00:42]} 24. Qf4 {[%emt 0:00:55]} Nd8 {[%emt 0:04:05]} 25. Qe5 {[%emt 0:02:36]} Ne6 {[%emt 0:01:19]} 26. Nxa5 {[%emt 0:01:30]} Bc8 {[%emt 0:03:14]} 27. Nb3 {[%emt 0:00:18]} Nc6 {[%emt 0:00:40]} 28. Qg3 {[%emt 0:01:00]} Ng7 {[%emt 0:01:13]} 29. Bf3 {[%emt 0:01:54]} Ne5 {[%emt 0:00:37]} 30. Bxg7 {[%emt 0:00:55]} Kxg7 {[%emt 0:00:10]} 31. exf5 {[%emt 0:01:22]} Bxf5 {[%emt 0:01:08]} 32. Bd5 {[%emt 0:00:43]} Rf6 {[%emt 0:00:32]} 33. a5 {[%emt 0:00:23]} Qa7 {[%emt 0:00:42]} 34. Re1 {[%emt 0:00:50]} Qc7 {[%emt 0:01:23]} 35. Nxc5 {[%emt 0:01:19]} Qxc5 {[%emt 0:01:24]} 36. Rxe5 {[%emt 0:00:09]} Rxe5 {[%emt 0:00:12]} 37. Qxe5 {[%emt 0:00:05]} Bxd3 {[%emt 0:00:06]} 38. b3 {[%emt 0:00:35]} Qd6 {[%emt 0:00:41]} 39. Qe1 {[%emt 0:01:34]} Rf1+ {[%emt 0:00:55]} 40. Qxf1 {[%emt 0:00:10]} Bxf1 {[%emt 0:00:02]} 41. a6 {[%emt 0:03:21]} Bxc4 {[%emt 0:01:53]} 42. Bxc4 {[%emt 0:00:10]} d3 {[%emt 0:04:32]} 43. Rd2 {[%emt 0:01:08]} Qd4+ {[%emt 0:00:26]} 44. Kf1 {[%emt 0:00:11]} Qf4+ {[%emt 0:00:52]} 45. Ke1 {[%emt 0:00:19]} Qe3+ {[%emt 0:00:06]} 0-1

[Event "DFMMLV 2019"]
[Site "Braunfels"]
[Date "2019.06.20"]
[Round "1.7"]
[White "Schulz, Theresa Charlotte"]
[Black "Valkova, Anzhelika"]
[Result "0-1"]
[ECO "C11"]
[WhiteElo "1603"]
[BlackElo "1944"]
[Annotator "NA"]
[PlyCount "44"]
[EventDate "2019.06.20"]
[EventType "team-tourn"]
[EventCountry "GER"]
[SourceTitle "playchess.com"]
[Source "ChessBase"]
[SourceQuality "1"]
[BlackTeam "Wuerttemberg 1"]
[TimeControl "40/5400+30:1800+30"]

1. e4 {[%emt 0:00:00]} e6 {[%emt 0:00:00]} 2. Nf3 {[%emt 0:03:14]} d5 {[%emt 0:00:00]} 3. Nc3 {[%emt 0:00:21]} Nf6 {[%emt 0:00:00]} 4. e5 {[%emt 0:03:57]} Nfd7 {[%emt 0:00:00]} 5. d4 {[%emt 0:03:32]} c5 {[%emt 0:00:00]} 6. Be3 {[%emt 0:10:40]} Nc6 {[%emt 0:02:42]} 7. Be2 {[%emt 0:15:00]} a6 {[%emt 0:11:58]} 8. O-O {[%emt 0:06:20]} Qc7 {[%emt 0:05:46]} 9. Bf4 {[%emt 0:20:37]} cxd4 {[%emt 0:01:11]} 10. Nxd4 {[%emt 0:00:18]} Ncxe5 {[%emt 0:00:36]} 11. Kh1 {[%emt 0:08:00]} Bb4 {[%emt 0:11:45]} 12. Nb1 {[%emt 0:03:36]} O-O {[%emt 0:06:09]} 13. c3 {[%emt 0:02:24]} Bd6 {[%emt 0:00:17]} 14. Nd2 {[%emt 0:01:29]} Rb8 {[%emt 0:14:51]} 15. a4 {[%emt 0:10:31]} Nc4 {[%emt 0:04:16]} 16. Bxd6 {[%emt 0:00:38]} Nxd6 {[%emt 0:00:03]} 17. Rc1 {[%emt 0:03:44]} b5 {[%emt 0:00:46]} 18. axb5 {[%emt 0:00:55]} axb5 {[%emt 0:00:04]} 19. b3 {[%emt 0:01:06]} Ba6 {[%emt 0:02:14]} 20. Re1 {[%emt 0:01:36]} Qb6 {[%emt 0:00:14]} 21. Kg1 {[%emt 0:01:34]} Rfc8 {[%emt 0:03:32]} 22. Nb1 {[%emt 0:00:50]} Ne4 {[%emt 0:01:09]} 0-1

[Event "DFMMLV 2019"]
[Site "Braunfels"]
[Date "2019.06.20"]
[Round "1.8"]
[White "Noppes, Marina"]
[Black "Meyer, Jessica"]
[Result "1-0"]
[ECO "E21"]
[WhiteElo "1983"]
[BlackElo "1344"]
[Annotator "NA"]
[PlyCount "59"]
[EventDate "2019.06.20"]
[EventType "team-tourn"]
[EventCountry "GER"]
[SourceTitle "playchess.com"]
[Source "ChessBase"]
[SourceQuality "1"]
[WhiteTeam "Wuerttemberg 1"]
[BlackTeam "Thueringen"]
[TimeControl "40/5400+30:1800+30"]

1. d4 {[%emt 0:00:00]} Nf6 {[%emt 0:00:13]} 2. Nf3 {[%emt 0:00:00]} e6 {[%emt 0:00:52]} 3. c4 {[%emt 0:02:26]} b6 {[%emt 0:01:00]} 4. Nc3 {[%emt 0:05:03]} Bb4 {[%emt 0:02:20]} 5. Bd2 {[%emt 0:00:37]} Bxc3 {[%emt 0:03:20]} 6. Bxc3 {[%emt 0:00:58]} Bb7 {[%emt 0:02:26]} 7. e3 {[%emt 0:03:06]} O-O {[%emt 0:02:03]} 8. Bd3 {[%emt 0:01:11]} c5 {[%emt 0:01:35]} 9. dxc5 {[%emt 0:04:01]} bxc5 {[%emt 0:00:43]} 10. Qc2 {[%emt 0:02:21]} h6 {[%emt 0:04:24]} 11. h4 {[%emt 0:02:24]} d6 {[%emt 0:17:04]} 12. O-O-O {[%emt 0:08:53]} Qc7 {[%emt 0:11:50]} 13. Bxf6 {[%emt 0:20:17]} gxf6 {[%emt 0:01:29]} 14. Rhg1 {[%emt 0:06:36]} Kh8 {[%emt 0:11:45]} 15. Nd2 {[%emt 0:02:34]} Nd7 {[%emt 0:11:25]} 16. g4 {[%emt 0:05:47]} Rg8 {[%emt 0:06:42]} 17. f4 {[%emt 0:03:50]} Rg7 {[%emt 0:02:03]} 18. g5 {[%emt 0:00:41]} f5 {[%emt 0:01:39]} 19. gxh6 {[%emt 0:02:56]} Rxg1 {[%emt 0:06:18]} 20. Rxg1 {[%emt 0:00:02]} Rg8 {[%emt 0:00:55]} 21. Rxg8+ {[%emt 0:08:49]} Kxg8 {[%emt 0:00:01]} 22. Bxf5 {[%emt 0:02:41]} exf5 {[%emt 0:07:01]} 23. Qxf5 {[%emt 0:00:18]} Nf8 {[%emt 0:03:34]} 24. Qg5+ {[%emt 0:00:43]} Ng6 {[%emt 0:00:28]} 25. h5 {[%emt 0:01:14]} Qe7 {[%emt 0:00:24]} 26. hxg6 {[%emt 0:05:06]} Qxg5 {[%emt 0:00:15]} 27. gxf7+ {[%emt 0:00:10]} Kxf7 {[%emt 0:00:30]} 28. fxg5 {[%emt 0:00:02]} Kg6 {[%emt 0:00:59]} 29. Kc2 {[%emt 0:00:17]} Bc6 {[%emt 0:00:38]} 30. Kd3 {[%emt 0:00:28]} 1-0

[Event "DFMMLV 2019"]
[Site "Braunfels"]
[Date "2019.06.20"]
[Round "1.9"]
[White "Kushka, Alena"]
[Black "Zschischang, Marine"]
[Result "1/2-1/2"]
[ECO "D31"]
[WhiteElo "2148"]
[BlackElo "2060"]
[Annotator "NA"]
[PlyCount "87"]
[EventDate "2019.06.20"]
[EventType "team-tourn"]
[EventCountry "GER"]
[SourceTitle "playchess.com"]
[Source "ChessBase"]
[SourceQuality "1"]
[WhiteTeam "Hessen 1"]
[BlackTeam "Niedersachsen Bremen"]
[TimeControl "40/5400+30:1800+30"]

1. d4 e6 2. c4 d5 3. Nc3 c6 4. e3 Bd6 5. Nf3 Nd7 6. e4 dxc4 7. e5 Bb8 8. Bxc4 b5 9. Bd3 Bb7 10. O-O Ne7 11. Bg5 $16 h6 12. Bh4 Qb6 13. Bxe7 Kxe7 14. a4 {[%emt 0:41:08]} a6 {[%emt 0:34:09]} 15. a5 {[%emt 0:02:25]} Qa7 {[%emt 0:00:36]} 16. b4 {[%emt 0:00:21]} g5 {[%emt 0:03:50]} 17. h3 {[%emt 0:06:57]} Bc7 {[%emt 0:03:17]} 18. Bb1 {[%emt 0:07:47]} Rag8 {[%emt 0:01:45]} 19. Ne4 {[%emt 0:07:49]} g4 {[%emt 0:05:32]} 20. hxg4 {[%emt 0:00:24]} Rxg4 {[%emt 0:00:26]} 21. Nh2 {[%emt 0:03:34]} Rg7 {[%emt 0:01:30]} 22. Ra3 {[%emt 0:05:42]} Qa8 {[%emt 0:05:52]} 23. Qh5 {[%emt 0:01:16]} Qg8 {[%emt 0:14:19]} 24. Qh4+ {[%emt 0:00:41]} Ke8 {[%emt 0:03:25]} 25. Rg3 {[%emt 0:02:29]} h5 {[%emt 0:08:29]} 26. Re1 {[%emt 0:05:04]} Rxg3 {[%emt 0:02:47]} 27. fxg3 {[%emt 0:00:28]} Qf8 {[%emt 0:01:17]} 28. Nc5 {[%emt 0:01:25]} Nxc5 {[%emt 0:01:54]} 29. dxc5 {[%emt 0:00:14]} Qg7 {[%emt 0:01:04]} 30. Qf4 {[%emt 0:01:09]} Rg8 {[%emt 0:00:24]} 31. Kf2 {[%emt 0:08:11]} h4 {[%emt 0:02:41]} 32. g4 {[%emt 0:00:41]} f6 {[%emt 0:01:18]} 33. exf6 {[%emt 0:02:14]} Bxf4 {[%emt 0:00:18]} 34. fxg7 {[%emt 0:00:32]} Bg3+ {[%emt 0:00:56]} 35. Kf1 {[%emt 0:00:22]} Bxe1 {[%emt 0:00:39]} 36. Kxe1 {[%emt 0:00:14]} Rxg7 {[%emt 0:00:19]} 37. Ke2 {[%emt 0:01:13]} Bc8 {[%emt 0:01:13]} 38. Be4 {[%emt 0:01:05]} Bd7 {[%emt 0:00:57]} 39. Ke3 {[%emt 0:02:08]} Ke7 {[%emt 0:01:29]} 40. Kf4 {[%emt 0:00:54]} Rf7+ {[%emt 0:02:25]} 41. Ke5 {[%emt 0:07:01]} Rg7 {[%emt 0:03:18]} 42. Kf4 {[%emt 0:12:24]} Ke8 43. Ke3 e5 44. Kf2 1/2-1/2

[Event "DFMMLV 2019"]
[Site "Braunfels"]
[Date "2019.06.20"]
[Round "1.10"]
[White "Moenster, Madita"]
[Black "Rieseler, Caroline"]
[Result "0-1"]
[ECO "B33"]
[WhiteElo "1994"]
[BlackElo "2111"]
[Annotator "NA"]
[PlyCount "78"]
[EventDate "2019.06.20"]
[EventType "team-tourn"]
[EventCountry "GER"]
[SourceTitle "playchess.com"]
[Source "ChessBase"]
[SourceQuality "1"]
[WhiteTeam "Niedersachsen Bremen"]
[BlackTeam "Hessen 1"]
[TimeControl "40/5400+30:1800+30"]

1. e4 {[%emt 0:00:00]} c5 {[%emt 0:00:00]} 2. Nf3 {[%emt 0:00:00]} Nc6 {[%emt 0:00:00]} 3. d4 {[%emt 0:00:00]} cxd4 {[%emt 0:00:00]} 4. Nxd4 {[%emt 0:00:00]} Nf6 {[%emt 0:00:06]} 5. Nc3 {[%emt 0:00:16]} e5 {[%emt 0:00:06]} 6. Ndb5 {[%emt 0:00:15]} d6 {[%emt 0:00:09]} 7. Bg5 {[%emt 0:00:28]} a6 {[%emt 0:00:17]} 8. Na3 {[%emt 0:00:13]} b5 {[%emt 0:00:07]} 9. Bxf6 {[%emt 0:01:40]} gxf6 {[%emt 0:00:07]} 10. Nd5 {[%emt 0:00:16]} Bg7 {[%emt 0:00:23]} 11. c3 {[%emt 0:01:12]} f5 {[%emt 0:00:35]} 12. Nxb5 {[%emt 0:02:43]} O-O {[%emt 0:14:37]} 13. Na3 {[%emt 0:12:06]} fxe4 {[%emt 0:00:43]} 14. Qa4 $11 {[%emt 0:03:55]} Bb7 {[%emt 0:28:30]} 15. Qxe4 {[%emt 0:05:39]} f5 {[%emt 0:15:05]} 16. Qd3 {[%emt 0:26:09]} Ne7 {[%emt 0:01:59]} 17. Ne3 {[%emt 0:08:33]} d5 {[%emt 0:12:21]} 18. Nec2 {[%emt 0:04:43]} Rc8 {[%emt 0:01:00]} 19. f3 {[%emt 0:07:28]} Bh6 {[%emt 0:03:32]} 20. Qe2 {[%emt 0:09:37]} Ng6 {[%emt 0:00:45]} 21. Qf2 {[%emt 0:01:10]} Qf6 {[%emt 0:00:25]} 22. Be2 {[%emt 0:00:47]} Kh8 {[%emt 0:04:35]} 23. O-O {[%emt 0:00:54]} Rg8 {[%emt 0:00:30]} 24. Kh1 {[%emt 0:01:16]} Nf4 {[%emt 0:01:32]} 25. g3 {[%emt 0:02:23]} Ne6 {[%emt 0:01:59]} 26. Rfd1 {[%emt 0:01:56]} Rgd8 {[%emt 0:02:35]} 27. Qb6 {[%emt 0:04:49]} Rd7 {[%emt 0:00:07]} 28. Nb4 {[%emt 0:01:09]} Bf8 {[%emt 0:06:33]} 29. Nd3 {[%emt 0:03:05]} e4 {[%emt 0:01:46]} 30. Nf4 {[%emt 0:00:43]} Rc6 {[%emt 0:00:42]} 31. Qe3 {[%emt 0:00:41]} Bc5 {[%emt 0:01:17]} 32. Qc1 {[%emt 0:00:33]} d4 {[%emt 0:00:48]} 33. Nxe6 {[%emt 0:00:26]} Qxe6 {[%emt 0:00:16]} 34. cxd4 {[%emt 0:00:47]} Bxd4 {[%emt 0:00:22]} 35. Bc4 {[%emt 0:00:53]} exf3 {[%emt 0:02:54]} 36. Qg5 {[%emt 0:00:39]} Rxc4 {[%emt 0:00:05]} 37. h3 {[%emt 0:00:34]} f2+ {[%emt 0:00:06]} 38. Kh2 {[%emt 0:00:05]} Qe4 {[%emt 0:00:08]} 39. Nxc4 {[%emt 0:00:50]} Qg2# {[%emt 0:00:06]} 0-1